{"text_format":"1","workbook":"xlsx","n_sheets":7,"sheets":["Úvod","Úkol","Úkol2","Podklady","Data","Export","Kódy"],"not_rendered":{"charts":0,"images":2,"macros":1,"external_links":0,"defined_names":18,"comments":0,"pivot_tables":0},"unopened":[],"bounds":{"document_bytes":16777216,"sheet_cells":100000,"rows_first":2000,"rows_last":500,"rows_between":2000,"halvings":0,"cell_chars":16384,"cell_head_chars":4096},"cells_cut":0,"cells_raw":0,"read":"whole","date_system":"1900"}

{"sheet":"Úvod","index":0,"n_rows":27,"n_cols":8,"rows_kept":27,"cut":false,"hidden":false,"merged":[[14,3,15,6],[15,7,15,9],[26,1,26,11],[1,2,1,9],[2,2,2,9],[11,2,12,6]]}
[]
[null,null,"Jak na Excel "]
[null,null,"MUNI"]
[]
[]
[null,null,null,"Obsah cvičení"]
[null,null,null,null,"Test závěrečné"]
[]
[]
[]
[]
[null,null,"Pavel Lasák"]
[]
[]
[null,null,null,"Lektor, expert na Microsoft Excel, držitel prestižního ocenění Microsoftu MVP v České republice"]
[null,null,null,null,null,null,null,5002722]
[]
[]
[]
[]
[null,null,null,"Další informace ke cvičení:"]
[]
[]
[]
[]
[]
[null,"Copyright, Pavel Lasák 2017"]

{"sheet":"Úkol","index":1,"n_rows":43,"n_cols":7,"rows_kept":43,"cut":false,"hidden":false,"merged":[[0,0,0,2],[1,0,1,2],[3,0,3,2],[5,0,5,2]]}
["Úkol - úterý"]
["http://JakNaExcel.cz/"]
[]
["z csv zjistit (vyfiltrovat) obraty podle prodejce a uložit do *.pdf",null,null,null,"40 bodů (%)"]
[]
["Cíl: Mít v jednom tlačítku (umístěném na tomto listu) nazveném \"Zpracuj\", které provede vše bez zobrazování pomocných dialogových oken (neplatí pro okna na příslušné dotazy, využijete-li).",null,null,null,{"$f":"SUM(E11:E77)","v":40}]
[]
["Doporučení: Pro přehlednest jednotlivé úkoly oddělujte poznámkou."]
[]
[]
["1) Načíst data",null,null,null,6]
[null,"Z data.csv načtěte na list Data (data v csv jsou odděleny středníkem)"]
[null,"Pokud se nedaří, můžete načíst ručně do listu Data (přes pás karet Data) a pokračovat dalšími úkoly"]
[]
[]
["2) Zpracovat data",null,null,null,15]
[null,"Využitím listu Podklady z kodu zjistěte jméno prodejce, město a celkovou cenu!",null,null,null,"prodejce",3]
[null,"Celková cena: Vynásobením počtu kusů a ceny daného výrobku",null,null,null,"město",4]
[null,"Doporučení: Využít vyhledávací funkce ZLEVA, ZPRAVA, SVYHLEDAT do pomocných sloupců",null,null,null,"celková cena",8]
[null,"POZOR! Oblast (počet řádku dynamicky, v načitaném souboru se může měnit)"]
[null,"Tip: Text a čísla. Pozor využitím texotvých funkcí je výsledkem text. "]
[null," Text lze převést na číslo přičtení 0 nebo vynásobením 1"]
[]
["3) Filtrovat data",null,null,null,6]
[null,"Vyfiltrujte automaticky jedno město, klidně jako konstanta jeho jména"]
[null,"Jméno prodejce dáte na vyběr uživateli"]
[null,"K výběru můžete použít například inputbox, nebo formulář."]
[null,"Poznámka: Pokud se nepodaří, tak odkaz na buňku","Prodejce"]
[]
[]
["4) Kopírovat jinam",null,null,null,8]
[null,"Výslednou vyfiltrovanou tabulku nakopírujte do listu Export"]
[null,"Pozor: Oblast označovat dynamicky (poslední řádek a poslední sloupec)"]
[null,"Tip: **** .Copy Destination:= ***"]
[]
["5) Uložit jako *.pdf",null,null,null,5]
[null,"Uložte jako pdf nebo csv"]
[null,"Stačí uložit do stejného adresáře jako máte tento sešit"]
[null,"Název si zvolte. Např Test.pdf (test.csv)"]
[]
[]
["Odpovědník"]
[null,"Uložte včetně maker a nahrajde do odpovědníků (postačí výsledný Excel s makry) "]

{"sheet":"Úkol2","index":2,"n_rows":28,"n_cols":2,"rows_kept":28,"cut":false,"hidden":true,"merged":[[0,0,0,3],[1,0,1,3],[3,0,3,3],[9,0,9,3]]}
["Úkol"]
["http://JakNaExcel.cz/"]
[]
["z csv zjistit obraty podle měst"]
[]
["Poznámka"]
[null,"kódy na listě Podklady"]
[]
[]
["Algoritmus"]
["1) Načíst data"]
[null,"ze souboru csv."]
[]
["2) Zpracovat data"]
[null,"Vytahnout data ze sloupce Město"]
[null,"Dopnit výpočet (Svyhledat)"]
[]
[]
["3) Filtrovat data"]
[null,"Vyfiltruj, podmínka Brno"]
[]
[]
["4) Kopírovat jinam"]
[null,"List Export vyfiltrované data"]
[]
[]
["5) Uložit jako *.pdf"]
[null,"Jen data na listu Export"]

{"sheet":"Podklady","index":3,"n_rows":25,"n_cols":40,"rows_kept":25,"cut":false,"hidden":false,"merged":[[0,0,0,12],[0,15,0,39],[4,37,4,39],[5,35,5,39]]}
["Zdroj a členění kódu",null,null,null,null,null,null,null,null,null,null,null,null,null,null,"Rozpad kódu"]
[null,null,null,null,null,null,null,null,null,null,null,null,null,null,null,"ID_PR-H-20130201_01_Fa111"]
[null,null,null,null,null,null,null,null,null,null,null,null,null,null,null,1,2,3,4,5,6,7,8,9,10,11,12,13,14,15,16,17,18,19,20,21,22,23,24,25]
[null,"Id","Město",null,"Id","Skupina",null,"Id","Prodejce",null,"ID","Produkt ","Cena",null,null,{"$f":"MID($P$2,P3,1)","v":"I"},"D","_","P","R","-","H","-","2","0","1","3","0","2","0","1","_",0,1,"_","F","a","1","1","1"]
[null,"PR","Praha",null,{"$f":"LEFT(F5,1)","v":"H"},"Hokej",null,"Fa","Fantomas Pepa",null,111,"Helma",251,null,null,null,null,null,null,null,null,null,null,null,null,null,null,null,null,null,null,null,null,null,null,null,null,"Produkt"]
[null,"OP","Opava",null,{"$f":"LEFT(F6,1)","v":"G"},"Golf",null,"Su","Superman Jano",null,112,"Hůl",324,null,null,null,null,null,null,null,null,null,null,null,null,null,null,null,null,null,null,null,null,null,null,"Prodejce"]
[null,"OV","Ostrava",null,{"$f":"LEFT(F7,1)","v":"P"},"PinkPong",null,"Ra","Rakosníček Franta",null,113,"Míček",75,null,null,null,null,null,null,null,null,null,null,null,null,null,null,null,null,null,null,null,"Pořadí"]
[null,"BR","Brno",null,{"$f":"LEFT(F8,1)","v":"F"},"Fotbal",null,"Bo","Bond James",null,114,"Chránče",784,null,null,null,null,null,null,null,null,null,null,null,null,null,null,null,null,"Den"]
[null,"OL","Olomouc",null,"S","Horolezectví",null,"Wo","Wolker Johny",null,115,"Boty",2257,null,null,null,null,null,null,null,null,null,null,null,null,null,null,"Měsíc"]
[null,"PL","Plzeň",null,{"$f":"LEFT(F10,1)","v":"K"},"Kuželky",null,"Al","Aladin Velký",null,116,"Lopta",125,null,null,null,null,null,null,null,null,null,null,"Rok"]
[null,"ZL","Zlín",null,null,null,null,"Ba","Bathman Malý",null,117,"Pálka",1257,null,null,null,null,null,null,null,null,"Skupina"]
[null,"UH","Uherské Hradiště",null,null,null,null,"Sp","Spiderman Lozicí",null,118,"Kopačky",3578,null,null,null,null,null,"Město"]
[null,null,null,null,null,null,null,null,null,null,119,"Karabina",872,null,null,"Jen označení že jde o kód"]
[null,null,null,null,null,null,null,null,null,null,120,"Sedák",1398]
[null,null,null,null,null,null,null,null,null,null,121,"Osma",350]
[null,null,null,null,null,null,null,null,null,null,122,"Brusle",2174]
[null,null,null,null,null,null,null,null,null,null,123,"Trenér",159]
[null,null,null,null,null,null,null,null,null,null,124,"Kopačák",336]
[null,null,null,null,null,null,null,null,null,null,125,"Puk",99]
[null,null,null,null,null,null,null,null,null,null,126,"Lano",5789]
[null,null,null,null,null,null,null,null,null,null,127,"Síť",4578]
[null,null,null,null,null,null,null,null,null,null,128,"Kuželka",478]
[null,null,null,null,null,null,null,null,null,null,129,"Leštidlo",155]
[null,null,null,null,null,null,null,null,null,null,130,"Bagl",2157]
[null,null,null,null,null,null,null,null,null,null,131,"Dres",3257]

{"sheet":"Data","index":4,"n_rows":0,"n_cols":0,"rows_kept":0,"cut":false,"hidden":false,"merged":[]}

{"sheet":"Export","index":5,"n_rows":0,"n_cols":0,"rows_kept":0,"cut":false,"hidden":false,"merged":[]}

{"sheet":"Kódy","index":6,"n_rows":53,"n_cols":2,"rows_kept":53,"cut":false,"hidden":true,"merged":[[0,0,0,2]]}
["Kódy"]
[]
[]
[]
[]
["1) Načíst data"]
[]
[null,"    CestaAdresare = ThisWorkbook.Path"]
[null,"    Workbooks.Open Filename:=CestaAdresare & \"\\csv-oddelovac-strednik.csv\", Local:=True"]
[null,"     "]
[null,"    Windows(\"csv-oddelovac-strednik.csv\").Activate"]
[null,"    Selection.CurrentRegion.Select"]
[null,"    "]
[null,"    Selection.Copy Workbooks(\"07e - nacteni-csv-excel.xlsm\").Worksheets(\"csv\").Cells"]
[null,"     "]
[null,"    Application.DisplayAlerts = False"]
[null,"    'vypnutí dialogového okna na zachování dat ve schránce"]
[null,"    ActiveWindow.Close ' zavře dočasné csv"]
[null,"    Application.DisplayAlerts = True"]
[]
[]
[null,"Úkol:"]
[null,"vytvoři list"]
[null,"smazat původní data z listu"]
[null,"načíst více csv"]
[]
["2) Zpracovat data"]
[]
[null,"For i = 2 To 50"]
[null,"      Worksheets(\"Data\").Cells(i, 3). ……"]
[null,"Next i"]
[]
[]
[]
["3) Filtrovat data"]
[]
[null,"Worksheets(\"Data\").Range(\"A1:B10\").AutoFilter Field:=2, Criteria1:=(\"Brno\")"]
[null,"Brno"]
[]
[null,"Hodnota = Range(\"C5\").Value"]
[null,"ActiveSheet.Range(\"Oblast\").AutoFilter Field:=2, Criteria1:=(\"<=\" & Hodnota)"]
[]
[]
[]
["4) Kopírovat jinam"]
[]
[null,"Worksheets(\"Data\").Range(\"A1:H100\").Copy Destination:=Worksheets(\"Export\").Range(\"A1\")"]
[]
[]
[]
["5) Uložit jako *.pdf"]
[]
[null," ActiveSheet.ExportAsFixedFormat Type:=xlTypePDF, _\nFilename:=\"D:\\smaz\\****.pdf\", Quality:=xlQualityStandard, _\n IncludeDocProperties:=True, IgnorePrintAreas:=False, OpenAfterPublish:=True"]